Cogmind - Beta 11.1 @@@ ROGUE MODE // 2022.10.02 @ 13:10:28 Player: Flerik Result: Destroyed by EN-LXC(z) with Zionite Laser-S Performance ------------- Evolutions (4) 2000 Regions Visited (12) 2400 Robots Destroyed (30) 150 Value Destroyed (576) 576 Prototype IDs (2) 40 Alien Tech Used (0) 0 Bonus (0) 0 TOTAL SCORE: 5166 Bonus ------- None Cogmind --------- Core Integrity 0/850 Matter 210/300 Energy 99/100 System Corruption 0% Temperature Cool (9) Movement Core (50) Location -6/Deep Caves Parts ------- > --- POWER (1) -------- (None) > --- PROPULSION (5) --- (None) > --- UTILITY (7) ------ Advanced Visual Processing Unit Improved Signal Interpreter Advanced Signal Interpreter Makeshift System Shield Improved System Shield Improved System Shield > --- WEAPON (2) ------- CR-A16's Pointy Stick > --- INVENTORY (5) ---- Advanced Terrain Scanner Advanced Assault Cannon Rocket Launcher Missile Launcher Peak State ------------ > --- POWER ------------ Nuclear Core > --- PROPULSION ------- Carbon-fiber Leg Carbon-fiber Leg Carbon-fiber Leg Titanium Leg VTOL Module > --- UTILITY ---------- Advanced Visual Processing Unit Improved Signal Interpreter Advanced Signal Interpreter System Shield System Shield Improved System Shield Improved System Shield > --- WEAPON ----------- Guided Missile Launcher > --- INVENTORY -------- Advanced Terrain Scanner Hacking Suite Makeshift System Shield Advanced Assault Cannon Power Maul [Rating: 56] Favorites ----------- Power Nuclear Core Engine Light Ion Engine Power Core Nuclear Core Propulsion Flight Unit Treads Light Treads Leg Carbon-fiber Leg Flight Unit Flight Unit Utility System Shield Device Sensor Array Storage Medium Storage Unit Processor Improved Signal Interpreter Hackware System Shield Weapon Medium Laser Energy Gun Medium Laser Ballistic Cannon Light Cannon Launcher Guided Missile Launcher Impact Weapon Power Maul Slashing Weapon Axe Piercing Weapon CR-A16's Pointy Stick Build | -11 -10 -9 -9 -8 -7 -6 -6 -6 -6 -6 -6 -6 ------- Run | Scr Mat Mat Min Mat Fac Fac Was Fac Low Low Zio Dee Slots Evolved 8 | . . 2 . 2 2 2 . . . . . . Power . | . . . . . . . . . . . . . Propulsion 3 | . . 1 . 2 . . . . . . . . Utility 5 | . . 1 . . 2 2 . . . . . . Weapon . | . . . . . . . . . . . . . Parts Attached 66 | 7 3 12 . 9 2 5 . 8 3 9 7 1 Power 8 | 1 1 1 . 1 . . . 3 . 1 . . Engine 7 | 1 1 1 . 1 . . . 3 . . . . Core 1 | . . . . . . . . . . 1 . . Reactor . | . . . . . . . . . . . . . Propulsion 22 | 2 . 7 . 3 . 2 . 1 . 7 . . Treads 6 | 2 . 4 . . . . . . . . . . Leg 5 | . . . . . . . . . . 5 . . Wheel . | . . . . . . . . . . . . . Hover . | . . . . . . . . . . . . . Flight 11 | . . 3 . 3 . 2 . 1 . 2 . . Utility 18 | 2 1 3 . 3 2 2 . 3 1 . 1 . Device 3 | 1 . 1 . 1 . . . . . . . . Storage 5 | 1 1 1 . 1 . 1 . . . . . . Processor 5 | . . 1 . 1 1 . . 2 . . . . Hackware 5 | . . . . . 1 1 . 1 1 . 1 . Protection . | . . . . . . . . . . . . . Artifact . | . . . . . . . . . . . . . Weapon 18 | 2 1 1 . 2 . 1 . 1 2 1 6 1 Energy Gun 4 | 2 1 . . 1 . . . . . . . . Energy Cannon . | . . . . . . . . . . . . . Ballistic Gun . | . . . . . . . . . . . . . Ballistic Cannon 2 | . . 1 . 1 . . . . . . . . Launcher 5 | . . . . . . . . 1 . . 4 . Special Weapon . | . . . . . . . . . . . . . Impact Weapon 4 | . . . . . . 1 . . 2 . 1 . Slashing Weapon 1 | . . . . . . . . . . 1 . . Piercing Weapon 2 | . . . . . . . . . . . 1 1 Special Melee Weapon . | . . . . . . . . . . . . . Unidentified Prototypes 2 | . . . . . . . . . . . 2 . Parts Lost 20 | . . 1 . 3 . . . 2 4 2 1 7 Power 1 | . . . . . . . . . . . . 1 Propulsion 13 | . . . . 1 . . . 1 4 2 . 5 Utility 4 | . . 1 . 1 . . . 1 . . . 1 Weapon 2 | . . . . 1 . . . . . . 1 . Highest Loss Streak 7 | . . 1 . 2 . . . 1 4 1 1 7 To Critical Strikes . | . . . . . . . . . . . . . Average Slot Usage (%) 90 | . 100 96 77 90 91 84 86 90 70 80 95 87 Engine 4 | . 14 11 11 9 7 6 6 6 2 . . . Core 2 | . . . . . . . . . . 3 6 5 Treads 6 | . 28 29 . . . . . . . . . . Leg 10 | . . . . . . . . . . 17 26 22 Flight 12 | . . 1 33 45 38 31 33 32 15 5 6 5 Device 5 | . 14 21 11 9 7 6 6 5 . . . . Storage 4 | . 14 11 11 9 7 6 6 6 2 . . . Processor 13 | . . . 11 9 14 13 13 14 20 20 20 20 Hackware 16 | . . . . . 7 13 13 18 23 26 26 25 Energy Gun 5 | . 28 16 . 8 7 3 . . . . . . Impact Weapon 1 | . . . . . . 2 6 4 5 2 . . Slashing Weapon 1 | . . . . . . . . . . 3 2 . Naked Turns . | . . . . . . . . . . . . . Heaviest Build 20 | 13 20 20 9 17 17 17 17 17 18 13 17 17 Greatest Support 69 | 40 40 69 12 20 20 20 20 20 20 62 62 62 Greatest Overweight (x) 1 | . . . . 1 . . . 1 1 . . . Average Overweight (x) . | . . . . . . . . . . . . . Largest Inventory Capacity 10 | 8 10 10 8 10 10 10 10 10 10 5 5 5 Average Capacity 7 | 7 9 9 8 8 10 10 10 10 6 5 5 5 Most Carried 10 | 5 10 10 8 8 9 10 10 10 10 5 5 5 Average Carried 6 | 3 8 9 8 7 5 8 10 9 6 4 4 4 Final Capacity 10 | 8 10 8 8 10 10 10 10 10 5 5 5 5 Final Carried 10 | 5 10 8 8 5 9 10 10 10 5 5 5 4 Class Distribution -------------------- 49% | Hacker-Mutant 23% | Mutant 17% | Scavenger-Scout 4% | Scavenger-Sprinter Dominant Class ---------------- Mutant | -10/Materials Mutant | -9/Materials Scavenger-Mutant | -9/Mines Scavenger-Sprinter | -8/Materials Scavenger-Scout | -7/Factory Scavenger-Scout | -6/Factory Scavenger-Scout | -6/Waste Scavenger-Scout | -6/Factory Hacker-Mutant | -6/Lower Caves Hacker-Mutant | -6/Lower Caves Hacker-Mutant | -6/Zion Hacker-Mutant | -6/Deep Caves Resources | -11 -10 -9 -9 -8 -7 -6 -6 -6 -6 -6 -6 -6 ----------- Run | Scr Mat Mat Min Mat Fac Fac Was Fac Low Low Zio Dee Matter Collected 840 | 171 70 129 . . 149 31 . 3 161 101 25 . Remotely . | . . . . . . . . . . . . . Salvage Created 796 | 81 192 276 . 38 12 31 . 29 34 97 . 6 Parts 50 | 5 15 17 . 4 2 . . 3 . 4 . . Haulers Intercepted 1 | . . . . 1 . . . . . . . . Recyclers Shooed 1 | 1 . . . . . . . . . . . . Parts Field Recycled . | . . . . . . . . . . . . . Retrieved Matter . | . . . . . . . . . . . . . Parts Self-Destructed 15 | . . . . . . . . . . 13 2 . Prevented 7 | . . . . . . . . . . 7 . . Kills | -11 -10 -9 -9 -8 -7 -6 -6 -6 -6 -6 -6 -6 ------- Run | Scr Mat Mat Min Mat Fac Fac Was Fac Low Low Zio Dee Combat Hostiles Destroyed 24 | . 6 7 . . . . . 3 . 5 . 3 Melee 5 | . . . . . . . . . . 4 . 1 Guns 13 | . 6 7 . . . . . . . . . . AOE 5 | . . . . . . . . 3 . . . 2 Classes Destroyed 9 | 2 2 1 . 2 . . . . 1 . . 1 Worker 2 | . . . . 1 . 1 . . . . . . Tunneler 3 | 1 . . . . 1 1 . . . . . . Hauler 1 | . . . . 1 . . . . . . . . Recycler 2 | 1 . 1 . . . . . . . . . . Watcher 1 | . . 1 . . . . . . . . . . Swarmer 15 | . 3 4 . . . . . 3 . 5 . . Grunt 6 | . 3 3 . . . . . . . . . . Samaritan 1 | . . . . . . . . . 1 . . . Assembled 3 | . . . . . . . . . . . . 3 Best Kill Streak 8 | 2 3 8 . 2 1 2 . 3 . 3 . 3 Combat Bots Only 7 | . 3 7 . . . . . 3 . 3 . 3 Max Kills in Single Turn 2 | 1 1 1 . 2 1 1 . 1 1 1 . 1 Gunslinging . | . . . . . . . . . . . . . Exploded 1 | . . . . . . . . 1 . . . 1 Melee 1 | . . . . . . . . . . 1 . 1 Uniques/NPCs Destroyed . | . . . . . . . . . . . . . Combat | -11 -10 -9 -9 -8 -7 -6 -6 -6 -6 -6 -6 -6 -------- Run | Scr Mat Mat Min Mat Fac Fac Was Fac Low Low Zio Dee Damage Taken 2838 | . 177 532 . 298 . 18 . 194 164 524 . 931 Core 946 | . 16 71 . . . . . 48 73 266 . 472 Absorbed by Shields . | . . . . . . . . . . . . . Regen/Repaired (Parts) 80 | . . . . . . 80 . . . . . . Core Remaining (%) 95 | 100 93 . 82 100 100 . . . . . . . Volleys Fired 52 | 4 20 19 . 1 2 . . 3 . . . 3 Largest 2 | 2 2 2 . 2 1 . . 1 . . . 1 Hottest 100 | 100 100 90 . 85 50 . . 30 . . . 39 Shots Fired 96 | 8 40 38 . 2 2 . . 3 . . . 3 Gun 88 | 8 40 37 . 1 2 . . . . . . . Cannon 2 | . . 1 . 1 . . . . . . . . Launcher 6 | . . . . . . . . 3 . . . 3 Special . | . . . . . . . . . . . . . Kinetic 2 | . . 1 . 1 . . . . . . . . Thermal 85 | 8 40 37 . . . . . . . . . . Explosive 6 | . . . . . . . . 3 . . . 3 Electromagnetic 3 | . . . . 1 2 . . . . . . . Robot Hit Streak 7 | 4 4 7 . 5 1 . . 3 . . . 3 Robot Miss Streak 3 | 2 3 3 . . 1 . . 1 . . . . Penetration Max . | . . . . . . . . . . . . . Secondary Targets 4 | . 1 3 . . . . . . . . . . Max Gunslinging Chain 1 | . 1 1 . . . . . . . . . . Shots Hit Robots 78 | 6 23 26 . 2 1 4 . 2 1 8 . 5 Core Hits 42 | 3 10 13 . 3 1 . . 4 . 3 . 5 Critical Kills 1 | . . . . . . . . . . 1 . . Critical Parts Destroyed 4 | . . . . . . 1 . . 1 2 . . Critical Strikes 9 | 1 1 2 . . . 1 . . 1 3 . . Burn 4 | 1 1 2 . . . . . . . . . . Smash 5 | . . . . . . 1 . . 1 3 . . Melee Attacks 62 | . . . . . . 5 . . 1 14 37 5 Impact 56 | . . . . . . 5 . . 1 13 37 . Slashing 1 | . . . . . . . . . . 1 . . Piercing 5 | . . . . . . . . . . . . 5 Sneak Attacks 4 | . . . . . . 3 . . 1 . . . Combat Hostiles . | . . . . . . . . . . . . . Follow-up Attacks . | . . . . . . . . . . . . . Damage Inflicted 2232 | 85 313 332 . 186 20 366 . 210 94 338 . 288 Guns 740 | 76 313 313 . 18 20 . . . . . . . Cannons 36 | . . 19 . 17 . . . . . . . . Explosions 578 | . . . . 151 . . . 210 . . . 217 Melee 869 | . . . . . . 366 . . 94 338 . 71 Ramming 9 | 9 . . . . . . . . . . . . Kinetic 36 | . . 19 . 17 . . . . . . . . Thermal 853 | 76 313 313 . 151 . . . . . . . . Explosive 427 | . . . . . . . . 210 . . . 217 Electromagnetic 38 | . . . . 18 20 . . . . . . . Impact 755 | . . . . . . 366 . . 94 295 . . Slashing 43 | . . . . . . . . . . 43 . . Piercing 71 | . . . . . . . . . . . . 71 Highest Corruption 10 | . . . . . . . 10 10 10 10 10 . Average Corruption 10 | . . . . . . . 10 10 10 10 10 . Corruption Purged . | . . . . . . . . . . . . . Corruption Blocked . | . . . . . . . . . . . . . Effects 41 | . . . . . . . 1 8 8 21 3 . Message Errors 9 | . . . . . . . . 4 3 1 1 . Matter Fused 9 | . . . . . . . 1 2 2 4 . . Heat Flow Errors 6 | . . . . . . . . . . 5 1 . Energy Discharges 4 | . . . . . . . . . 1 3 . . Data Loss (minor) 8 | . . . . . . . . . 1 6 1 . Data Loss (major) 3 | . . . . . . . . 1 1 1 . . Alerts 1 | . . . . . . . . 1 . . . . Misdirections 1 | . . . . . . . . . . 1 . . Overload Shots . | . . . . . . . . . . . . . Overflow Damage 448 | . . . . 49 . 164 . 24 94 107 . 10 Projectiles . | . . . . . . . . . . . . . Explosions 83 | . . . . 49 . . . 24 . . . 10 Melee 365 | . . . . . . 164 . . 94 107 . . Knockbacks 2 | . . . . . . 2 . . . . . . Impact 2 | . . . . . . 2 . . . . . . Kinetic . | . . . . . . . . . . . . . Secondary . | . . . . . . . . . . . . . Self-Inflicted Damage 224 | . . . . 224 . . . . . . . . Shots 3 | . . . . 3 . . . . . . . . Rammed 1 | 1 . . . . . . . . . . . . Targets Rammed 1 | 1 . . . . . . . . . . . . Kicked . | . . . . . . . . . . . . . Crushed . | . . . . . . . . . . . . . Highest Temperature 419 | 156 354 419 . 72 4 . . . . 165 76 . Average Temperature 128 | 79 116 190 . 38 2 . . . . 73 49 . Received Heat Transfer 636 | . 66 231 . 18 . 9 . 24 36 9 . 243 Effects 2 | . 1 1 . . . . . . . . . . Shutdowns 1 | . . 1 . . . . . . . . . . Energy Bleed 1 | . 1 . . . . . . . . . . . Siege Activations . | . . . . . . . . . . . . . Robots Corrupted . | . . . . . . . . . . . . . Combat Hostiles . | . . . . . . . . . . . . . Parts Fried 5 | . . . . . . 3 . . . 2 . . Impact Corruptions 18 | . . . . . . 6 . . 8 4 . . Robots Melted . | . . . . . . . . . . . . . Combat Hostiles . | . . . . . . . . . . . . . Parts Melted 2 | . . 1 . 1 . . . . . . . . Heat Transferred 2461 | 296 987 978 . 200 . . . . . . . . Parts Sabotaged . | . . . . . . . . . . . . . Parts Stolen . | . . . . . . . . . . . . . Parts Stripped . | . . . . . . . . . . . . . Power Chain Reactions 1 | . . . . 1 . . . . . . . . Missiles Intercepted . | . . . . . . . . . . . . . Alert | -11 -10 -9 -9 -8 -7 -6 -6 -6 -6 -6 -6 -6 ------- Run | Scr Mat Mat Min Mat Fac Fac Was Fac Low Low Zio Dee Peak Influence 281 | 10 234 281 33 261 193 151 82 242 . . . . Initial 118 | . 6 98 33 12 118 94 52 57 . . . . Average 125 | 2 109 193 33 145 124 110 62 101 . . . . Maximum Alert Level 1 | . 1 1 . 1 . . . 1 . . . . Low Security (%) 78 | 100 77 46 100 61 100 100 100 91 . . . . Level 1 21 | . 22 53 . 38 . . . 8 . . . . Level 2 . | . . . . . . . . . . . . . Level 3 . | . . . . . . . . . . . . . Level 4 . | . . . . . . . . . . . . . Level 5 . | . . . . . . . . . . . . . High Security . | . . . . . . . . . . . . . Max Security . | . . . . . . . . . . . . . Squads Dispatched 8 | . 2 1 . 1 2 1 . 1 . . . . Investigation 4 | . 1 . . 1 1 . . 1 . . . . Extermination . | . . . . . . . . . . . . . Reinforcement 4 | . 1 1 . . 1 1 . . . . . . Assault . | . . . . . . . . . . . . . Garrison . | . . . . . . . . . . . . . Intercept . | . . . . . . . . . . . . . Searches Triggered . | . . . . . . . . . . . . . Construction Impeded . | . . . . . . . . . . . . . Haulers Reinforced 1 | . . . . . . 1 . . . . . . Active Scanning Responses . | . . . . . . . . . . . . . Cargo Convoy Interrupts . | . . . . . . . . . . . . . Stealth | -11 -10 -9 -9 -8 -7 -6 -6 -6 -6 -6 -6 -6 --------- Run | Scr Mat Mat Min Mat Fac Fac Was Fac Low Low Zio Dee Distress Signals 2 | . . . . 1 . 1 . . . . . . Communications Jammed . | . . . . . . . . . . . . . Distress Signals . | . . . . . . . . . . . . . Times Spotted 90 | . 11 20 . 7 4 6 5 6 3 19 . 9 Peak Tracking Total 9 | . 3 8 . 9 4 6 5 5 2 5 . 7 Tactical Retreats 8 | . . . . 2 1 . . 1 1 3 . . Traps | -11 -10 -9 -9 -8 -7 -6 -6 -6 -6 -6 -6 -6 ------- Run | Scr Mat Mat Min Mat Fac Fac Was Fac Low Low Zio Dee Traps Triggered 6 | . . 1 . . 1 2 . 2 . . . . Indirectly . | . . . . . . . . . . . . . Trap Hack Attempts . | . . . . . . . . . . . . . Triggered . | . . . . . . . . . . . . . Disarmed . | . . . . . . . . . . . . . Reprogrammed 4 | . . . . . 4 . . . . . . . Reused 1 | . . . . . 1 . . . . . . . Traps Extracted . | . . . . . . . . . . . . . Installed . | . . . . . . . . . . . . . Triggered 1 | . . . . . 1 . . . . . . . Machines | -11 -10 -9 -9 -8 -7 -6 -6 -6 -6 -6 -6 -6 ---------- Run | Scr Mat Mat Min Mat Fac Fac Was Fac Low Low Zio Dee Machines Disabled 3 | . . . . 2 . . . . . . . 1 Max in Single Turn 2 | . . . . 2 . . . . . . . 1 Garrison Access 1 | . . . . 1 . . . . . . . . Machines Sabotaged . | . . . . . . . . . . . . . Garrisons Compromised . | . . . . . . . . . . . . . Overloaded Fab Kills . | . . . . . . . . . . . . . Hacking | -11 -10 -9 -9 -8 -7 -6 -6 -6 -6 -6 -6 -6 --------- Run | Scr Mat Mat Min Mat Fac Fac Was Fac Low Low Zio Dee Machines Accessed 18 | . 2 2 . 4 4 4 . . . 2 . . Terminals 7 | . 1 2 . 3 1 . . . . . . . Fabricators 2 | . . . . . . 2 . . . . . . Repair Stations 2 | . . . . . . 2 . . . . . . Recycling Units 3 | . 1 . . . 2 . . . . . . . Scanalyzers 1 | . . . . . 1 . . . . . . . Garrison Access 1 | . . . . 1 . . . . . . . . Total Hacks 49 | . 4 7 . 9 8 12 . . . 9 . . Successful 29 | . 3 3 . 4 2 8 . . . 9 . . Failed 20 | . 1 4 . 5 6 4 . . . . . . Catastrophic 4 | . . 1 . . . 3 . . . . . . Database Lockouts . | . . . . . . . . . . . . . Manual 18 | . 4 5 . 8 . . . . . . 1 . Terminals 21 | . 2 7 . 8 4 . . . . . . . Fabricators 5 | . . . . . . 5 . . . . . . Repair Stations 7 | . . . . . . 7 . . . . . . Recycling Units 5 | . 2 . . . 3 . . . . . . . Scanalyzers 1 | . . . . . 1 . . . . . . . Garrison Access 1 | . . . . 1 . . . . . . . . Terminal Hacks 14 | . . 1 . 2 2 . . . . 9 . . Record 8 | . . . . . . . . . . 8 . . Open Door 1 | . . . . . . . . . . 1 . . Level Access Points 1 | . . . . 1 . . . . . . . . Reprogram Traps 1 | . . . . . 1 . . . . . . . Hauler Manifests 1 | . . 1 . . . . . . . . . . Zone Layout 2 | . . . . 1 1 . . . . . . . Fabricator Hacks 1 | . . . . . . 1 . . . . . . Network Status 1 | . . . . . . 1 . . . . . . Repair Station Hacks 7 | . . . . . . 7 . . . . . . Scan Component 4 | . . . . . . 4 . . . . . . Repair 3 | . . . . . . 3 . . . . . . Recycling Unit Hacks . | . . . . . . . . . . . . . Scanalyzer . | . . . . . . . . . . . . . Garrison Access Hacks 1 | . . . . 1 . . . . . . . . Seal Access 1 | . . . . 1 . . . . . . . . Unauthorized Hacks 6 | . 3 2 . 1 . . . . . . . . Terminals 5 | . 2 2 . 1 . . . . . . . . Track 1 | . 1 . . . . . . . . . . . Assimilate 1 | . . . . 1 . . . . . . . . Botnet 2 | . 1 1 . . . . . . . . . . Operators 1 | . . 1 . . . . . . . . . . Fabricators . | . . . . . . . . . . . . . Repair Stations . | . . . . . . . . . . . . . Recycling Units 1 | . 1 . . . . . . . . . . . Tunnel 1 | . 1 . . . . . . . . . . . Scanalyzers . | . . . . . . . . . . . . . Garrison Access . | . . . . . . . . . . . . . Data Cores Recovered . | . . . . . . . . . . . . . Used . | . . . . . . . . . . . . . Hacking Detections 13 | . 2 2 . 1 4 4 . . . . . . Full Trace Events 1 | . . . . 1 . . . . . . . . Feedback Events . | . . . . . . . . . . . . . Feedback Blocked . | . . . . . . . . . . . . . Robot Schematics Acquired . | . . . . . . . . . . . . . Robots Built . | . . . . . . . . . . . . . Authchips . | . . . . . . . . . . . . . Time . | . . . . . . . . . . . . . Total Robot Build Rating . | . . . . . . . . . . . . . Part Schematics Acquired . | . . . . . . . . . . . . . Parts Built . | . . . . . . . . . . . . . Authchips . | . . . . . . . . . . . . . Time . | . . . . . . . . . . . . . Total Part Build Rating . | . . . . . . . . . . . . . Parts Repaired 3 | . . . . . . 3 . . . . . . Time 71 | . . . . . . 71 . . . . . . Parts Recycled . | . . . . . . . . . . . . . Recycled Matter . | . . . . . . . . . . . . . Retrieved Matter . | . . . . . . . . . . . . . Retrieved Components . | . . . . . . . . . . . . . Parts Scanalyzed . | . . . . . . . . . . . . . Part Schematics Acquired . | . . . . . . . . . . . . . Parts Damaged . | . . . . . . . . . . . . . Bothacking | -11 -10 -9 -9 -8 -7 -6 -6 -6 -6 -6 -6 -6 ------------ Run | Scr Mat Mat Min Mat Fac Fac Was Fac Low Low Zio Dee Used RIF Installer . | . . . . . . . . . . . . . Robots Hacked . | . . . . . . . . . . . . . Non-combat . | . . . . . . . . . . . . . Combat . | . . . . . . . . . . . . . Robot Hacks Applied . | . . . . . . . . . . . . . Relay Couplers Released . | . . . . . . . . . . . . . Fabnet Peak Effective % . | . . . . . . . . . . . . . Robots Rewired . | . . . . . . . . . . . . . Allies Hacked . | . . . . . . . . . . . . . Hacks Repelled . | . . . . . . . . . . . . . Allies | -11 -10 -9 -9 -8 -7 -6 -6 -6 -6 -6 -6 -6 -------- Run | Scr Mat Mat Min Mat Fac Fac Was Fac Low Low Zio Dee Total Allies 1 | . . . . 1 . . . . . . . . Largest Group 1 | . . . . 1 . . . . . . . . Highest-Rated Group 10 | . . . . 10 . . . . . . . . Highest-Rated Ally 10 | . . . . 10 . . . . . . . . Total Orders . | . . . . . . . . . . . . . Ally Attacks . | . . . . . . . . . . . . . Total Damage . | . . . . . . . . . . . . . Kills . | . . . . . . . . . . . . . Allies Corrupted . | . . . . . . . . . . . . . Allies Melted . | . . . . . . . . . . . . . Intel | -11 -10 -9 -9 -8 -7 -6 -6 -6 -6 -6 -6 -6 ------- Run | Scr Mat Mat Min Mat Fac Fac Was Fac Low Low Zio Dee Robot Analysis Total . | . . . . . . . . . . . . . Derelict Logs Recovered 5 | . . . . . . . . . 2 3 . . Drone Launches . | . . . . . . . . . . . . . Drone Recoveries . | . . . . . . . . . . . . . Exploration | -11 -10 -9 -9 -8 -7 -6 -6 -6 -6 -6 -6 -6 ------------- Run | Scr Mat Mat Min Mat Fac Fac Was Fac Low Low Zio Dee Turns Passed 3596 | 121 307 441 24 152 226 235 33 226 232 491 922 186 Spaces Moved 4016 | 60 146 238 21 309 537 272 103 440 612 476 651 151 Core 43 | 3 . . . . . . . . . 11 . 29 Treads 422 | 57 146 219 . . . . . . . . . . Legs 1037 | . . . . . . . . . . 264 651 122 Wheels . | . . . . . . . . . . . . . Hover . | . . . . . . . . . . . . . Flight 2514 | . . 19 21 309 537 272 103 440 612 201 . . Fastest Speed 27 | 50 160 34 34 28 28 28 28 27 27 35 122 50 Average Speed 67 | 154 160 149 34 28 28 28 28 28 34 83 122 108 Slowest Speed 160 | 160 160 160 34 111 28 28 28 111 109 122 122 125 Overloaded Moves . | . . . . . . . . . . . . . Propulsion Burnouts . | . . . . . . . . . . . . . Robots Hopped 17 | . . 2 . 3 3 2 . 6 1 . . . Cave-ins Triggered . | . . . . . . . . . . . . . Exploration Rate (%) 36 | 4 30 23 8 32 17 9 91 17 80 61 55 43 Regions Visited 12 Branch Regions 5 Pre-discovered Areas 7 | . 1 . 1 . . . . . 1 3 1 . Known Exits Taken 8 | . . 1 1 1 1 . . 1 1 1 1 . Unknown Exits Taken 2 | 1 1 . . . . . . . . . . . Scrap Searched 14 | . . . . . . . . . 10 2 2 . Spaces Dug 6 | . . . . . . . . . . . 6 . Terrain Destroyed 66 | . . . . 36 . . . 24 . . 6 . Melee 6 | . . . . . . . . . . . 6 . Projectile . | . . . . . . . . . . . . . AOE 60 | . . . . 36 . . . 24 . . . . Terrain Rammed . | . . . . . . . . . . . . . Walls Destroyed . | . . . . . . . . . . . . . Machines Disabled . | . . . . . . . . . . . . . Actions | -11 -10 -9 -9 -8 -7 -6 -6 -6 -6 -6 -6 -6 --------- Run | Scr Mat Mat Min Mat Fac Fac Was Fac Low Low Zio Dee Total 4637 | 76 182 283 37 365 606 418 106 529 629 540 705 161 Wait 373 | . . 1 17 46 64 117 4 76 8 40 . . Move 3972 | 59 145 233 20 302 530 269 102 427 609 475 650 151 Hop 16 | . . 2 . 3 3 1 . 6 1 . . . Pick Up 35 | 5 8 6 . 3 5 1 . 2 2 . 3 . Fast Attach 36 | 7 1 1 . 2 1 4 . 6 1 7 6 . Attach 18 | . . 5 . 5 1 1 . 1 2 1 1 1 Detach 9 | . . 2 . 1 . 2 . 2 1 1 . . Swap 13 | . 2 6 . 2 . . . 1 . 1 1 . Drop 32 | . 6 8 . . . . . 5 4 1 7 1 Fire 52 | 4 20 19 . 1 2 . . 3 . . . 3 Melee 62 | . . . . . . 5 . . 1 14 37 5 Ram . | . . . . . . . . . . . . . Kick . | . . . . . . . . . . . . . Crush 1 | 1 . . . . . . . . . . . . Escape Stasis 18 | . . . . . . 18 . . . . . . Rewire . | . . . . . . . . . . . . . Trap . | . . . . . . . . . . . . . Miscellaneous . | . . . . . . . . . . . . . Route ------- -11/Scrapyard -10/Materials -9/Materials -9/Mines -8/Materials (discovered 3 exits: *Fac x3) -7/Factory -6/Factory -6/Waste -6/Factory -6/Lower Caves -6/Lower Caves (discovered 2 exits: *Fac / *Zio) -6/Zion -6/Deep Caves History --------- Turn | Location | Event 5 | -11/Scrapyard | Discovered new exit (range 15) 122 | -11/Scrapyard | Entered Materials 319 | -10/Materials | Build established: Mutant 396 | -10/Materials | Discovered new exit (range 9) 429 | -10/Materials | Entered another Materials area 429 | -9/Materials | Evolved 2 slots: Propulsion x1, Utility x1 635 | -9/Materials | Destroyed 7 combat bots 868 | -9/Materials | Discovered new exit (range 4) 870 | -9/Materials | Identified exit to Mines 870 | -9/Materials | Entered Mines 874 | -9/Mines | Discovered new exit (range 8) 876 | -9/Mines | Identified exit to Materials 877 | -9/Mines | Learned location of Storage (-7) 894 | -9/Mines | Entered Materials 894 | -8/Materials | Evolved 2 slots: Propulsion x2 951 | -8/Materials | Identified exit to Factory 1046 | -8/Materials | Entered Factory 1046 | -7/Factory | Evolved 2 slots: Utility x2 1192 | -7/Factory | Discovered new exit (range 19) 1199 | -7/Factory | Identified exit to Factory 1272 | -7/Factory | Entered another Factory area 1272 | -6/Factory | Evolved 2 slots: Utility x2 1306 | -6/Factory | Repaired Flight Unit 1334 | -6/Factory | Repaired Flight Unit 1373 | -6/Factory | Repaired Nuclear Core 1507 | -6/Factory | Sucked down chute 1507 | -6/Factory | Entered Waste 1511 | -6/Waste | Spotted C-40 Crusher 1513 | -6/Waste | Spotted C-40 Crusher 1519 | -6/Waste | Spotted C-40 Crusher 1522 | -6/Waste | EMP discharged 1522 | -6/Waste | System corruption reached 10% 1531 | -6/Waste | Spotted C-40 Crusher 1534 | -6/Waste | Spotted C-40 Crusher 1534 | -6/Waste | Spotted C-40 Crusher 1537 | -6/Waste | Discovered new exit (range 11) 1540 | -6/Waste | Identified exit to Factory 1540 | -6/Waste | Entered Factory 1654 | -6/Factory | Build established: Scavenger-Scout 1719 | -6/Factory | Spotted B-75 Beast 1737 | -6/Factory | Discovered new exit (range 19) 1751 | -6/Factory | Identified exit to Lower Caves 1766 | -6/Factory | Entered Lower Caves 1802 | -6/Lower Caves | Learned 4 Factory zone layouts 1849 | -6/Lower Caves | Attracted the attention of an 0b10 checkpoint 1880 | -6/Lower Caves | Lost 4 parts (4n) 1996 | -6/Lower Caves | Discovered new exit (range 5) 1998 | -6/Lower Caves | Identified exit to Lower Caves 1998 | -6/Lower Caves | Entered another Lower Caves area 2050 | -6/Lower Caves | Discovered new exit (range 10) 2089 | -6/Lower Caves | Identified exit to Factory 2106 | -6/Lower Caves | Learned Factory emergency access door positions 2115 | -6/Lower Caves | Learned location of Extension (-4) 2115 | -6/Lower Caves | Learned location of Armory (-3) 2115 | -6/Lower Caves | Learned Research stockpile data 2115 | -6/Lower Caves | Learned Extension stockpile data 2115 | -6/Lower Caves | Learned Factory security intel 2115 | -6/Lower Caves | Learned Factory terminal intel 2115 | -6/Lower Caves | Learned Research garrison access intel 2134 | -6/Lower Caves | Build established: Hacker-Mutant 2424 | -6/Lower Caves | Learned 4 Factory zone layouts 2451 | -6/Lower Caves | Discovered new exit (range 8) 2458 | -6/Lower Caves | Identified exit to Zion 2489 | -6/Lower Caves | Entered Zion 2526 | -6/Zion | Found CR-A16's Pointy Stick 2572 | -6/Zion | System corruption cleaned by Quarantine Array 2672 | -6/Zion | Received a hallucinogenic algorithm 2825 | -6/Zion | Learned location of Quarantine (-3) 2920 | -6/Zion | Found Prototype Launcher 2920 | -6/Zion | Identified Gui. Missile Launcher 3132 | -6/Zion | Discovered new exit (range 5) 3134 | -6/Zion | Saw the warning signs outside the Deep Caves entrance 3136 | -6/Zion | Identified exit to Deep Caves 3411 | -6/Zion | Entered Deep Caves 3557 | -6/Deep Caves | Attacked by Z-Imprinter 3568 | -6/Deep Caves | Z-Facility disabled 3576 | -6/Deep Caves | Core integrity fell below 50% 3590 | -6/Deep Caves | Core integrity fell below 20% 3597 | -6/Deep Caves | Destroyed by EN-LXC(z) with Zionite Laser-S Last Messages --------------- 03346_ 4P-NWH(z) pokes at the Twisted Machinery. LOCATION=DEEP CAVES GOAL=ESCAPE 03470_ Destroyed Asb. F-torch. 03470_ as-84282 destroyed. 03470_ Machine disabled. 03474_ as-41850 destroyed. 03476_ Dropped Gui. Missile Launcher. 03479_ as-64951 destroyed. 03549_ NEW_ZION: Z-Facility proximity alert. 03557_ 3H-SBU(o) is busy at the terminal. Z-Imprinter: GET AWAY FROM HERE! I've worked too hard for our future just to have you ruin everything! 03558_ Carbon-fiber Leg destroyed. 03568_ Z-Facility disabled. 03568_ Carbon-fiber Leg destroyed. 03572_ System Shield destroyed. 03575_ VTOL Module destroyed. 03578_ Nuclear Core destroyed. 03582_ Titanium Leg destroyed. Map ----- +----------------------------------------------------+ | | | | | | | ?????????????????????????????????????????????????? | | ?????????????????????????????????????????????????? | | ?????????????????????????????????????????????????? | | ??????????????????????????????? [????????????????? | | ??????????????????????####?#??? #?# ?????????????? | | ??????????????????#####zzz# ##? ## ???????????? | | ??????????????? # ## ??????????? | | ????????????? ???????????? | | ????????????? ???????????? | | ?????????????# ???????????? | | ?????????????## ???????????? | | ?????????????# """???????????? | | ??????????##?# """???????????? | | ??????????# # """"??????????? | | ??????????? """"??????????? | | ????????????# """"??????????? | | ?????????????# """"?????????? | | ????????????## """""????????" | | ????????????# """""???????"" | | ?????????????# """"""????"""" | | ?????????????# """"""????" " | | ?????????????# """""???" | | ?????????# @ """""??? | | ?????????# """"""??" | | ?????????# """"""??" | | ?????????## """"""""?"" | | ??????????### """"""""""""" | | ????????????# """""" ? | | ????????????## """""" ?""" | | ?????????????# """""" """"" | | ?????????????## """""" """"""" | | ??????????????# """"" """"""" | | ??????????????# """" """"""" | | ??????????????# """" """"" | | ?????????????? z """" """ | | ????????????? z """" | | ???????????? zz I """"""""" " | | ????????????? z """"" "" | | ???????????????? | | ????????????????? | | ?????????????????? | | ?????????????????? | | ??????????????????? | | ??????????????????? | | ??????????????????? | | ???????????????????? ### ### | | ???????????????????? ##??# ??## # | +----------------------------------------------------+ Best States ------------- Heat Dissipation 37 Energy Generation 14 Energy Capacity 250 Matter Stores 300 Matter Capacity 300 Sight Range 20 Robot Scan Range 14 Terrain Scan Density 10 Evasion (%) 64 Melee Accuracy 8 Recoil Reduction 3 Defensive Hacking 45 Item Schematics ----------------- None Robot Schematics ------------------ None Fabricated ------------ Nothing Alien Tech Used ----------------- None Achievements -------------- None Challenges ------------ None Game ------ Seed SwarmReactionLeg Manual? 0 Play Time 00:44:06 Cumulative 43.1 hours Start 2022.10.02 @ 12:27:44 End 2022.10.02 @ 13:10:28 Sessions 1 Manual Loads 0 Difficulty Rogue Special Mode None Game No. 71 Rogue 70 Adventurer 1 Explorer 0 Win Type - Total 3 Types 3/0/0/0/0/0/0/0/0 Lore% 46 Gallery% 43 Achievement% 40 Wizard Run 0 Options --------- ASCII 0 Keyboard 1 Movement Numpad Keybinds 0 Fullscreen 1 Font 18/SmallcapsGlow Map View 76x50 Tactical HUD 1 Map Filters NONE Filters NONE Steam 1 RUN: cd825b05-a971-4028-9084-392143e25b6f